bitfinex-derivatives/quotes_SOLF0:USTF0_20250425
["timestamp","ask_amount","ask_price","bid_price","bid_amount"]
[1745617970018,6.6592,150.05,150.04,11.44369482]
[1745617980726,6.6587,150.06,150.04,11.44369482]
[1745617981128,6.6587,150.06,150.03,32.5398]
[1745617981425,6.6587,150.06,150.04,11.44369482]
[1745617982629,6.6587,150.06,150.04,18.10299482]
[1745617983424,6.6578,150.08,150.05,6.6587]
[1745617983629,11.44369482,150.09,150.06,11.44369482]
[1745617983927,6.658,150.08,150.06,11.44369482]
[1745617984429,6.658,150.07,150.06,11.44369482]
[1745617985627,6.6577,150.08,150.06,11.44369482]
[1745617986730,6.6577,150.08,150.05,6.6588]
[1745617987027,6.6577,150.08,150.06,11.44369482]
[1745617987828,6.6577,150.08,150.07,25.66]
[1745617988031,6.6572,150.09,150.07,25.66]
[1745617988330,11.44369482,150.13,150.08,11.44369482]
[1745617988523,6.6569,150.1,150.08,11.44369482]
[1745617991230,6.6569,150.1,150.07,32.3178]
[1745617991528,6.6569,150.1,150.09,11.44369482]
[1745617991930,6.6565,150.11,150.09,11.44369482]
[1745617992129,11.44369482,150.13,150.09,11.44369482]
[1745617993129,6.6567,150.1,150.09,11.44369482]
[1745617993831,6.6567,150.1,150.07,32.3178]
[1745617994128,6.6567,150.1,150.08,11.44369482]
[1745617995132,6.6563,150.11,150.08,18.10109482]
[1745617996528,6.6561,150.12,150.09,6.6571]
[1745617996732,11.44369482,150.15,150.1,11.44369482]
[1745617997031,11.44369482,150.15,150.11,25.66]
[1745617997331,6.6552,150.14,150.11,32.316]
[1745617997830,11.44369482,150.17,150.11,25.66]
[1745617998031,6.6547,150.15,150.12,6.6555]
[1745617998227,11.44369482,150.17,150.12,11.44369482]
[1745617998428,11.44369482,150.17,150.11,25.66]
[1745617998728,11.44369482,150.17,150.12,18.09919482]
[1745617999330,11.44369482,150.17,150.12,11.44369482]
[1745617999733,6.6545,150.15,150.12,11.44369482]
[1745618000031,37.4979,150.2,150.14,11.44369482]
[1745618000032,11.44369482,150.2,150.14,11.44369482]
[1745618000232,63.01593359,150.24,150.16,11.44369482]
[1745618000434,6.6538,150.17,150.16,37.10369482]
[1745618001327,11.44369482,150.23,150.16,37.10369482]
[1745618001534,11.44369482,150.23,150.18,18.09659482]
[1745618001825,63.01593359,150.24,150.18,11.44369482]
[1745618002031,63.01593359,150.24,150.18,18.09649482]
[1745618003031,6.6518,150.22,150.18,18.09649482]
[1745618003536,19.31479482,150.25,150.18,6.6528]
[1745618003836,19.31479482,150.25,150.19,11.44369482]
[1745618004135,19.31479482,150.25,150.2,25.64]
[1745618004336,6.6521,150.21,150.2,25.64]
[1745618005631,11.44369482,150.25,150.2,25.64]
[1745618006036,11.44369482,150.25,150.21,11.44369482]
[1745618006537,6.6508,150.24,150.21,11.44369482]
[1745618008634,6.6508,150.24,150.21,18.09549482]
[1745618008841,11.44369482,150.25,150.2,37.08369482]
[1745618009539,6.6517,150.22,150.2,37.08369482]
[1745618010140,6.6517,150.22,150.2,43.73599482]
[1745618010639,6.651,150.23,150.2,43.73599482]
[1745618010933,6.651,150.23,150.2,32.2923]
[1745618011141,6.651,150.23,150.21,11.44369482]
[1745618011335,6.6505,150.24,150.21,18.09529482]
[1745618011539,11.44369482,150.26,150.21,11.44369482]
[1745618012341,6.6512,150.23,150.21,11.44369482]
[1745618012942,6.6512,150.23,150.2,32.2919]
[1745618013142,6.6512,150.23,150.21,11.44369482]
[1745618013443,6.6514,150.22,150.21,11.44369482]
[1745618013937,6.6514,150.22,150.2,32.2919]
[1745618014145,6.6518,150.21,150.2,37.08369482]
[1745618014845,6.6518,150.21,150.2,25.64]
[1745618019344,6.6518,150.21,150.2,37.08369482]
[1745618019545,6.6515,150.22,150.2,37.08369482]
[1745618021752,6.6515,150.22,150.2,43.73589482]
[1745618022051,6.6512,150.23,150.2,43.73589482]
[1745618022247,11.44369482,150.28,150.22,11.44369482]
[1745618022551,6.6507,150.24,150.22,11.44369482]
[1745618023956,6.651,150.23,150.22,11.44369482]
[1745618027060,6.6507,150.24,150.22,11.44369482]
[1745618027462,6.651,150.23,150.22,11.44369482]
[1745618028061,6.6507,150.24,150.22,11.44369482]
[1745618028257,6.6507,150.24,150.23,11.44369482]
[1745618028566,6.6499,150.26,150.23,11.44369482]
[1745618028760,6.6499,150.26,150.24,25.62]
[1745618029362,6.6501,150.25,150.24,25.62]
[1745618030161,63.01593359,150.35,150.24,25.62]
[1745618030565,63.01593359,150.35,150.25,11.7379]
[1745618030757,69.66193359,150.35,150.27,6.6491]
[1745618031461,82.43372841,150.36,150.31,11.44369482]
[1745618031666,78.28032841,150.36,150.28,6.6487]
[1745618031866,78.28032841,150.36,150.31,11.44369482]
[1745618032064,81.10492841,150.36,150.3,11.44369482]
[1745618032563,69.66123359,150.36,150.25,11.7379]
[1745618032866,63.01593359,150.36,150.34,11.44369482]
[1745618035370,6.6435,150.4,150.34,11.44369482]
[1745618035668,11.44369482,150.4,150.34,11.44369482]
[1745618035868,6.6453,150.36,150.34,11.44369482]
[1745618036069,11.44369482,150.38,150.32,11.44369482]
[1745618036561,6.6452,150.36,150.32,11.44369482]
[1745618037070,6.6448,150.37,150.34,11.44369482]
[1745618037865,11.44369482,150.39,150.31,33.1]
[1745618038170,11.44369482,150.39,150.33,11.44369482]
[1745618038970,6.6448,150.37,150.33,11.44369482]
[1745618039162,6.6448,150.37,150.35,11.44369482]
[1745618039562,11.44369482,150.43,150.35,11.44369482]
[1745618039767,11.44369482,150.43,150.37,11.44369482]
[1745618040167,6.644,150.39,150.37,11.44369482]
[1745618041070,6.6443,150.38,150.37,11.44369482]
[1745618041270,11.44369482,150.43,150.37,11.44369482]
[1745618042473,11.44369482,150.38,150.27,479.06]
[1745618042675,33.08,150.42,150.3,11.44369482]
[1745618042870,11.44369482,150.36,150.3,11.44369482]
[1745618043071,6.6471,150.32,150.3,11.44369482]
[1745618043373,11.44369482,150.36,150.3,11.44369482]
[1745618043873,6.6474,150.31,150.3,11.44369482]
[1745618045365,6.6474,150.31,150.27,479.06]
[1745618045573,6.6474,150.31,150.3,11.44369482]
[1745618047779,33.08,150.37,150.3,11.44369482]
[1745618048078,11.44369482,150.39,150.33,11.44369482]
[1745618048376,6.6455,150.36,150.33,11.44369482]
[1745618048578,11.44369482,150.39,150.33,11.44369482]
[1745618050473,6.6459,150.35,150.32,6.6469]
[1745618050679,11.44369482,150.39,150.32,11.44369482]
[1745618050882,6.6465,150.33,150.32,11.44369482]
[1745618051682,6.6463,150.34,150.32,11.44369482]
[1745618053082,33.08,150.42,150.32,11.44369482]
[1745618053281,11.44369482,150.4,150.34,11.44369482]
[1745618053678,6.645,150.37,150.34,11.44369482]
[1745618054182,6.6446,150.38,150.34,11.44369482]
[1745618054382,44.52369482,150.42,150.36,11.44369482]
[1745618055179,6.6448,150.37,150.36,11.44369482]
[1745618055784,6.6456,150.36,150.34,11.44369482]
[1745618055979,11.44369482,150.4,150.34,11.44369482]
[1745618057183,6.6453,150.36,150.34,11.44369482]
[1745618057885,6.6449,150.37,150.34,18.08969482]
[1745618058585,6.6449,150.37,150.36,11.44369482]
[1745618060890,6.6449,150.37,150.35,6.6456]
[1745618061183,6.6449,150.37,150.35,11.44369482]
[1745618061789,44.52369482,150.42,150.35,11.44369482]
[1745618061986,44.52369482,150.42,150.37,11.44369482]
[1745618062481,6.6442,150.39,150.37,11.44369482]
[1745618062890,6.6436,150.4,150.37,18.08819482]
[1745618063188,6.6436,150.4,150.37,11.44369482]
[1745618063689,6.6439,150.39,150.37,11.44369482]
[1745618066192,6.6444,150.38,150.35,6.6454]
[1745618066491,33.08,150.42,150.36,11.44369482]
[1745618066492,11.44369482,150.41,150.36,11.44369482]
[1745618066693,6.6446,150.38,150.36,11.44369482]
[1745618066994,11.44369482,150.41,150.36,11.44369482]
[1745618067388,6.6441,150.39,150.36,18.08879482]
[1745618067791,11.44369482,150.41,150.35,11.44369482]
[1745618068695,6.645,150.37,150.35,11.44369482]
[1745618070095,6.645,150.37,150.34,6.6461]
[1745618070294,11.44369482,150.41,150.36,18.08889482]
[1745618070596,11.44369482,150.41,150.36,11.44369482]
[1745618070795,6.6437,150.4,150.36,11.44369482]
[1745618071402,6.6437,150.4,150.31,33.08]
[1745618071698,6.6437,150.4,150.36,11.44369482]
[1745618071995,6.6437,150.4,150.36,18.08859482]
[1745618072798,44.52369482,150.42,150.37,6.6446]
[1745618073295,6.6437,150.4,150.37,6.6446]
[1745618074001,44.52369482,150.42,150.37,6.6446]
[1745618075700,44.52369482,150.42,150.36,18.08869482]
[1745618075895,44.52369482,150.42,150.36,11.44369482]
[1745618076300,6.6441,150.39,150.37,6.6447]
[1745618076602,44.52369482,150.42,150.31,33.08]
[1745618076798,44.52369482,150.42,150.35,18.08899482]
[1745618077100,44.52369482,150.42,150.35,11.44369482]
[1745618077600,44.52369482,150.42,150.37,11.44369482]
[1745618077799,6.6434,150.41,150.38,6.6441]
[1745618078099,6.6434,150.41,150.37,11.44369482]
[1745618078402,6.6435,150.4,150.38,6.644]
[1745618078799,6.6435,150.4,150.37,11.44369482]
[1745618079000,6.6439,150.39,150.37,18.08829482]
[1745618079902,6.6439,150.39,150.37,11.44369482]
[1745618081802,6.6439,150.39,150.36,18.08869482]
[1745618085307,6.6439,150.39,150.37,6.6446]
[1745618085604,6.6436,150.4,150.37,6.6446]
[1745618086307,11.44369482,150.41,150.27,492.3579]
[1745618086504,19.17349482,150.41,150.34,11.44369482]
[1745618086704,3.9415,150.4,150.32,11.44369482]
[1745618086905,6.6452,150.37,150.32,11.44369482]
[1745618087105,6.6452,150.37,150.33,11.44369482]
[1745618087305,6.6452,150.36,150.33,18.08989482]
[1745618089208,6.645,150.37,150.34,6.6461]
[1745618089405,3.9415,150.4,150.34,6.6461]
[1745618090106,3.9415,150.4,150.33,18.08999482]
[1745618090308,6.6455,150.36,150.33,18.08999482]
[1745618091006,3.9415,150.4,150.33,6.6463]
[1745618091209,6.6457,150.35,150.33,11.44369482]
[1745618092207,6.6457,150.35,150.31,6.6472]
[1745618092511,11.44369482,150.37,150.31,11.44369482]
[1745618092911,6.6468,150.33,150.31,11.44369482]
[1745618093412,6.647,150.32,150.31,11.44369482]
[1745618093713,11.44369482,150.37,150.31,11.44369482]
[1745618094016,6.6468,150.33,150.31,11.44369482]
[1745618098817,6.6464,150.34,150.31,18.09099482]
[1745618099015,41.04369482,150.38,150.31,11.44369482]
[1745618099517,6.6468,150.33,150.31,11.44369482]
[1745618099717,41.04369482,150.38,150.31,11.44369482]
[1745618101715,41.04369482,150.38,150.24,11.7567]
[1745618102019,11.44369482,150.36,150.29,11.44369482]
[1745618102418,6.6473,150.32,150.29,18.09179482]
[1745618102718,11.44369482,150.36,150.29,18.09179482]
[1745618103719,6.6477,150.31,150.29,11.44369482]
[1745618105019,29.6,150.38,150.3,6.6479]
[1745618105319,11.44369482,150.37,150.31,11.44369482]
[1745618106020,6.647,150.32,150.31,11.44369482]
[1745618108015,6.6475,150.31,150.3,11.44369482]
[1745618108422,6.6473,150.32,150.3,11.44369482]
[1745618109020,6.6474,150.31,150.3,11.44369482]
[1745618113122,6.6479,150.3,150.29,11.44369482]
[1745618113323,28.46,150.3,150.17,19.9606]
[1745618113525,11.44369482,150.29,150.23,11.44369482]
[1745618113819,6.6503,150.25,150.23,18.09439482]
[1745618114522,6.6495,150.27,150.23,11.44369482]
[1745618114818,6.6495,150.27,150.25,11.44369482]
[1745618116322,6.649,150.28,150.25,11.44369482]
[1745618117422,6.6492,150.27,150.25,11.44369482]
[1745618117722,28.46,150.3,150.25,11.44369482]
[1745618117923,6.6491,150.28,150.25,18.09369482]
[1745618118424,28.46,150.3,150.24,11.44369482]
[1745618118623,11.44369482,150.29,150.24,11.44369482]
[1745618119024,6.6498,150.26,150.24,11.44369482]
[1745618122528,6.6501,150.25,150.24,11.44369482]
[1745618123628,6.6501,150.25,150.23,18.09459482]
[1745618123926,6.6501,150.25,150.23,11.44369482]
[1745618128335,6.6501,150.25,150.23,18.09459482]
[1745618128730,6.6501,150.25,150.18,36.5737]
[1745618129028,6.6501,150.25,150.23,11.44369482]
[1745618130236,6.6501,150.25,150.23,18.09449482]
[1745618131439,6.6499,150.26,150.23,18.09449482]
[1745618131839,11.44369482,150.29,150.23,18.09449482]
[1745618132040,6.6499,150.26,150.23,18.09449482]
[1745618133140,6.649,150.28,150.25,11.44369482]
[1745618133438,28.46,150.3,150.27,11.44369482]
[1745618133939,28.46,150.3,150.22,28.48]
[1745618134136,28.46,150.3,150.27,11.44369482]
[1745618134440,6.6483,150.29,150.27,18.09269482]
[1745618136241,35.1081,150.3,150.27,18.09269482]
[1745618139145,35.1081,150.3,150.27,6.649]
[1745618139542,35.1081,150.3,150.27,18.09269482]
[1745618140747,6.6484,150.29,150.27,11.44369482]
[1745618144349,6.6484,150.29,150.26,6.6494]
[1745618144551,6.6484,150.29,150.26,18.09309482]
[1745618145050,6.6488,150.28,150.26,18.09309482]
[1745618145854,6.6488,150.28,150.26,11.44369482]
[1745618148250,6.6499,150.26,150.25,11.44369482]
[1745618153052,6.6494,150.27,150.24,6.6505]
[1745618153258,28.46,150.3,150.23,11.44369482]
[1745618153857,6.6497,150.26,150.23,18.09439482]
[1745618154458,6.6495,150.27,150.24,6.6504]
[1745618154854,28.46,150.3,150.23,11.44369482]
[1745618155059,28.46,150.3,150.27,11.44369482]
[1745618155250,28.46,150.3,150.26,11.44369482]
[1745618155858,6.6484,150.29,150.26,11.44369482]
[1745618158961,6.6484,150.29,150.26,18.09329482]
[1745618161062,6.6488,150.28,150.26,18.09329482]
[1745618162063,6.6485,150.29,150.26,18.09329482]
[1745618164169,35.108,150.3,150.27,6.6491]
[1745618164368,27.34,150.33,150.28,11.44369482]
[1745618165371,6.6472,150.32,150.29,6.648]
[1745618165568,6.6472,150.32,150.3,11.44369482]
[1745618166473,6.6474,150.31,150.3,11.44369482]
[1745618167876,6.6479,150.3,150.29,11.44369482]
[1745618168171,11.44369482,150.32,150.27,11.44369482]
[1745618168375,6.6487,150.28,150.26,11.44369482]
[1745618170374,6.6487,150.28,150.25,6.6498]
[1745618170574,6.6487,150.28,150.26,11.44369482]
[1745618172277,6.6487,150.28,150.25,6.6498]
[1745618172578,6.6487,150.28,150.27,11.44369482]
[1745618174178,6.6485,150.29,150.27,11.44369482]
[1745618175878,26.56,150.31,150.27,11.44369482]
[1745618177587,6.6484,150.29,150.27,11.44369482]
[1745618179683,6.6487,150.28,150.26,6.6495]
[1745618180086,63.01593359,150.37,150.27,38.00369482]
[1745618180285,63.01593359,150.37,150.35,11.44369482]
[1745618182381,6.6446,150.38,150.35,11.44369482]
[1745618184488,6.6449,150.37,150.35,11.44369482]
[1745618189590,3.8169,150.42,150.35,18.08929482]
[1745618189889,3.8169,150.42,150.39,11.44369482]
[1745618190491,6.6434,150.4,150.39,11.44369482]
[1745618193195,6.6432,150.41,150.39,11.44369482]
[1745618193393,6.6432,150.41,150.4,11.44369482]
[1745618193895,6.6428,150.42,150.4,11.44369482]
[1745618194095,6.6428,150.42,150.41,11.44369482]
[1745618195295,6.6431,150.41,150.36,7.6872]
[1745618195495,26.54,150.44,150.4,11.44369482]
[1745618195795,33.1817,150.44,150.43,11.44369482]
[1745618198299,6.6417,150.44,150.43,11.44369482]
[1745618200203,6.6415,150.45,150.43,11.44369482]
[1745618200401,6.6415,150.45,150.44,11.44369482]
[1745618200902,6.6411,150.46,150.44,11.44369482]
[1745618201200,6.6411,150.46,150.45,11.44369482]
[1745618201604,6.642,150.44,150.39,25.84]
[1745618201795,25.84,150.49,150.43,11.44369482]
[1745618201995,25.84,150.49,150.45,11.44369482]
[1745618202203,6.6408,150.46,150.45,11.44369482]
[1745618206505,25.84,150.49,150.45,11.44369482]
[1745618206706,504.48,150.52,150.48,11.44369482]
[1745618207308,6.6395,150.49,150.48,11.44369482]
[1745618208708,6.6392,150.5,150.48,11.44369482]
[1745618209007,6.6392,150.5,150.49,11.44369482]
[1745618213311,6.6399,150.48,150.47,11.44369482]
[1745618218314,11.44369482,150.5,150.45,11.44369482]
[1745618218617,11.44369482,150.48,150.43,11.44369482]
[1745618219016,6.6417,150.44,150.43,11.44369482]
[1745618219919,6.6425,150.42,150.41,11.44369482]
[1745618220510,6.6434,150.4,150.39,11.44369482]
[1745618221313,37.28369482,150.44,150.37,19.18269482]
[1745618221521,11.44369482,150.4,150.36,11.44369482]
[1745618221720,37.28369482,150.4,150.36,11.44369482]
[1745618222226,6.6452,150.37,150.36,11.44369482]
[1745618225029,6.6455,150.36,150.32,32.4867]
[1745618225230,6.6455,150.36,150.35,11.44369482]
[1745618226031,6.646,150.35,150.32,25.84]
[1745618226233,6.646,150.35,150.34,11.44369482]
[1745618229533,6.646,150.35,150.32,6.6469]
[1745618229735,6.6462,150.34,150.31,10.7067]
[1745618230032,6.6462,150.34,150.33,11.44369482]
[1745618230234,6.6462,150.34,150.29,25.84]
[1745618230435,6.6465,150.33,150.32,11.44369482]
[1745618232529,25.84,150.36,150.32,11.44369482]
[1745618232735,6.6463,150.34,150.3,6.6478]
[1745618233032,25.84,150.36,150.27,12.0513]
[1745618233235,6.6465,150.33,150.27,12.0513]
[1745618233933,6.6465,150.33,150.32,11.44369482]
[1745618234235,6.6463,150.34,150.32,11.44369482]
[1745618234534,6.6463,150.34,150.33,11.44369482]
[1745618248038,25.84,150.36,150.27,12.0513]
[1745618248235,6.6472,150.32,150.27,12.0513]
[1745618248436,6.6472,150.32,150.31,11.44369482]
[1745618249839,6.6474,150.31,150.28,6.6485]
[1745618250138,25.84,150.36,150.3,11.44369482]
[1745618250333,25.84,150.36,150.33,11.44369482]
[1745618250734,6.6461,150.34,150.33,11.44369482]
[1745618253842,6.6481,150.3,150.27,10.812]
[1745618254043,6.6481,150.3,150.29,11.44369482]
[1745618254237,37.28369482,150.36,150.27,4.1632]
[1745618254436,37.28369482,150.36,150.23,25.84]
[1745618254747,37.28369482,150.36,150.3,11.44369482]
[1745618254946,6.6474,150.31,150.3,11.44369482]
[1745618258750,478.7,150.31,150.23,15.30169482]
[1745618258952,11.44369482,150.29,150.23,11.44369482]
[1745618259149,25.84,150.28,150.26,11.44369482]
[1745618259351,25.84,150.28,150.25,11.44369482]
[1745618259754,6.6496,150.26,150.25,11.44369482]
[1745618260252,6.6503,150.25,150.22,15.50699482]
[1745618262354,6.6503,150.25,150.22,4.0633]
[1745618262553,11.44369482,150.27,150.22,4.0633]
[1745618262554,6.6506,150.24,150.22,4.0633]
[1745618264450,6.651,150.23,150.22,4.0633]
[1745618268655,18.09469482,150.23,150.22,4.0633]
[1745618268852,6.6519,150.21,150.17,45.15669482]
[1745618269061,11.44369482,150.23,150.18,3.9234]
[1745618269655,11.44369482,150.21,150.18,3.9234]
[1745618270262,11.44369482,150.19,150.04,13.3184]
[1745618270565,478.86,150.23,150.11,7.9189]
[1745618270566,11.44369482,150.15,150.11,7.9189]
[1745618270765,11.44369482,150.13,150.11,7.9189]
[1745618271064,6.6558,150.12,150.11,7.9189]
[1745618271265,6.6558,150.12,150.11,3.9234]
[1745618272267,6.6558,150.12,150.09,25.84]
[1745618273866,18.09929482,150.13,150.09,25.84]
[1745618275265,11.44369482,150.14,150.09,25.84]
[1745618275465,11.44369482,150.15,150.11,6.6562]
[1745618276269,11.44369482,150.15,150.1,6.6566]
[1745618276869,6.655,150.14,150.1,6.6566]
[1745618277064,11.44369482,150.15,150.1,6.6566]
[1745618277364,11.44369482,150.15,150.08,11.44369482]
[1745618277365,6.6556,150.13,150.07,4.1861]
[1745618277567,11.44369482,150.11,150.07,4.1861]
[1745618277762,11.44369482,150.11,150.08,6.6572]
[1745618278374,11.44369482,150.11,150.07,10.8438]
[1745618278770,11.44369482,150.11,150.07,4.1861]
[1745618278964,11.44369482,150.11,150.08,6.6576]
[1745618279172,11.44369482,150.11,150.07,4.1861]
[1745618279571,6.6556,150.13,150.08,6.6573]
[1745618279773,11.44369482,150.11,150.08,6.6573]
[1745618280173,6.6561,150.12,150.08,6.6573]
[1745618280375,18.09979482,150.12,150.08,6.6573]
[1745618282176,6.6563,150.11,150.07,10.8439]
[1745618282375,11.44369482,150.1,150.07,4.1861]
[1745618282776,11.44369482,150.1,150.07,10.8439]
[1745618285781,11.44369482,150.1,150.08,6.6576]
[1745618286279,11.44369482,150.16,150.12,6.6556]
[1745618286680,18.09799482,150.16,150.11,37.30369482]
[1745618286983,18.09799482,150.16,150.12,6.6555]
[1745618287871,25.86,150.18,150.11,37.30369482]
[1745618287872,18.09739482,150.17,150.11,37.30369482]
[1745618288178,11.44369482,150.17,150.12,7.8797]
[1745618289379,25.86,150.21,150.13,11.44369482]
[1745618289681,11.44369482,150.19,150.13,15.36219482]
[1745618289984,18.09649482,150.19,150.16,6.6539]
[1745618290280,11.44369482,150.19,150.16,6.6539]
[1745618292382,11.44369482,150.19,150.15,32.5143]
[1745618292885,18.09669482,150.19,150.15,32.5143]
[1745618294982,18.09669482,150.19,150.16,6.654]
[1745618295182,11.44369482,150.19,150.16,6.654]
[1745618295679,11.44369482,150.19,150.15,25.86]
[1745618295980,11.44369482,150.17,150.15,25.86]
[1745618296282,18.09739482,150.17,150.15,25.86]
[1745618296477,11.44369482,150.17,150.15,25.86]
[1745618298482,11.44369482,150.17,150.14,6.6549]
[1745618299883,11.44369482,150.17,150.15,6.6545]
[1745618300386,11.44369482,150.17,150.11,37.28369482]
[1745618300579,11.44369482,150.17,150.14,6.6546]
[1745618302682,11.44369482,150.17,150.15,6.6544]
[1745618302984,11.44369482,150.17,150.15,32.4944]
[1745618303684,18.09669482,150.19,150.15,32.4944]
[1745618304585,18.09669482,150.19,150.16,6.654]
[1745618304786,6.6532,150.18,150.15,25.84]
[1745618304986,11.44369482,150.19,150.15,25.84]
[1745618305188,11.44369482,150.19,150.15,32.4943]
[1745618305487,18.09659482,150.19,150.15,32.4943]
[1745618306989,11.44369482,150.17,150.15,25.84]
[1745618308089,11.44369482,150.17,150.15,32.4944]
[1745618310190,18.09659482,150.19,150.15,32.4944]
[1745618310892,11.44369482,150.19,150.15,32.4944]
[1745618311393,18.09659482,150.19,150.15,32.4944]
[1745618313290,18.09659482,150.19,150.16,6.654]
[1745618314192,11.44369482,150.17,150.15,25.84]
[1745618315093,11.44369482,150.18,150.15,32.4943]
[1745618316189,6.6531,150.19,150.15,32.4943]
[1745618316488,15.21969482,150.22,150.17,11.44369482]
[1745618316796,11.44369482,150.22,150.15,25.84]
[1745618316996,18.09619482,150.2,150.16,6.6537]
[1745618317395,18.09619482,150.2,150.15,37.28369482]
[1745618317695,11.44369482,150.2,150.15,25.84]
[1745618317996,11.44369482,150.18,150.15,25.84]
[1745618318192,6.6538,150.17,150.15,25.84]
[1745618318998,6.6541,150.16,150.15,25.84]
[1745618320300,6.6541,150.16,150.13,6.6551]
[1745618320301,6.6541,150.16,150.12,6.6556]
[1745618320599,6.6541,150.16,150.12,18.09929482]
[1745618320795,6.6541,150.16,150.13,25.84]
[1745618321196,6.6546,150.15,150.13,25.84]
[1745618321400,11.44369482,150.16,150.13,25.84]
[1745618321698,6.6548,150.15,150.13,25.84]
[1745618326008,11.44369482,150.18,150.13,43.93909482]
[1745618326606,18.09709482,150.18,150.14,6.6547]
[1745618326805,25.84,150.23,150.13,37.28369482]
[1745618327005,18.09659482,150.19,150.15,6.6544]
[1745618327305,6.6529,150.19,150.15,6.6544]
[1745618327604,18.09659482,150.19,150.15,6.6544]
[1745618328702,6.6532,150.18,150.15,6.6544]
[1745618329002,11.44369482,150.19,150.14,6.6547]
[1745618329206,6.6532,150.18,150.14,18.09839482]
[1745618329708,11.44369482,150.21,150.16,11.44369482]
[1745618330099,11.44369482,150.21,150.17,25.84]
[1745618330307,18.09489482,150.23,150.19,6.6526]
[1745618330709,6.6507,150.24,150.2,18.09589482]
[1745618331003,11.44369482,150.25,150.2,18.09589482]
[1745618331504,6.6507,150.24,150.2,18.09589482]
[1745618331707,11.44369482,150.25,150.2,11.44369482]
[1745618331910,6.6507,150.24,150.2,11.44369482]
[1745618333107,6.6507,150.24,150.2,18.09589482]
[1745618333408,6.651,150.23,150.2,18.09589482]
[1745618333607,6.651,150.23,150.19,6.6525]
[1745618333907,6.651,150.23,150.19,18.09619482]
[1745618335211,11.44369482,150.25,150.19,18.09619482]
[1745618335212,6.6507,150.24,150.2,6.6522]
[1745618337411,6.651,150.23,150.2,11.44369482]
[1745618337913,6.6507,150.24,150.2,18.09599482]
[1745618339417,6.6507,150.24,150.21,6.6517]
[1745618339819,6.6507,150.24,150.21,32.4717]
[1745618340117,6.6507,150.24,150.21,25.82]
[1745618340518,6.6498,150.26,150.22,11.44369482]
[1745618341119,6.6489,150.28,150.22,11.44369482]
[1745618341619,6.6489,150.28,150.24,11.44369482]
[1745618342112,18.09199482,150.29,150.24,18.09409482]
[1745618342316,11.44369482,150.31,150.25,25.82]
[1745618342521,11.44369482,150.31,150.26,11.44369482]
[1745618342720,18.09139482,150.31,150.26,18.09309482]
[1745618342916,11.44369482,150.31,150.26,18.09309482]
[1745618343220,6.6479,150.3,150.26,11.44369482]
[1745618343719,11.44369482,150.31,150.26,11.44369482]
[1745618344219,6.6483,150.29,150.26,11.44369482]
[1745618345519,6.6488,150.28,150.25,37.26369482]
[1745618346021,6.6488,150.28,150.25,25.82]
[1745618347221,6.6488,150.28,150.26,11.44369482]
[1745618350926,11.44369482,150.31,150.26,11.44369482]
[1745618351326,6.6486,150.29,150.26,11.44369482]
[1745618351726,11.44369482,150.31,150.26,11.44369482]
[1745618352227,11.44369482,150.32,150.26,11.44369482]
[1745618352426,6.6472,150.32,150.3,11.44369482]
[1745618352728,11.44369482,150.35,150.3,11.44369482]
[1745618352922,6.6463,150.34,150.3,11.44369482]
[1745618353928,6.6458,150.35,150.31,6.6473]
[1745618354128,11.44369482,150.37,150.32,11.44369482]
[1745618354528,6.6456,150.36,150.32,11.44369482]
[1745618355530,6.6456,150.36,150.32,18.09059482]
[1745618356532,6.6456,150.36,150.33,25.8]
[1745618358138,6.6457,150.35,150.33,25.8]
[1745618361237,6.6453,150.36,150.33,32.4464]
[1745618363140,6.6457,150.35,150.33,32.4464]
[1745618365042,6.6457,150.35,150.33,25.8]
[1745618365542,6.6454,150.36,150.34,18.08979482]
[1745618365742,11.44369482,150.39,150.34,11.44369482]
[1745618366732,11.44369482,150.39,150.34,18.08969482]
[1745618368044,6.6437,150.4,150.34,18.08969482]
[1745618368246,3.9451,150.41,150.36,11.44369482]
[1745618368544,11.44369482,150.42,150.36,11.44369482]
[1745618369346,11.44369482,150.42,150.38,18.08779482]